fUSD/lending_fUSD_20251006
["ID","MTS","AMOUNT","RATE_DAILY","PERIOD"]
[389578167,1759723877616,-500.0,0.00016438,2]
[389578168,1759723877627,-500.0,0.00016438,2]
[389578169,1759723877640,-500.0,0.00016438,2]
[389578170,1759723877651,-500.0,0.00016438,2]
[389578171,1759723877661,-500.0,0.00016438,2]
[389578172,1759723877675,-500.0,0.00016438,2]
[389578173,1759723877686,-500.0,0.00016438,2]
[389578174,1759723877697,-500.0,0.00016438,2]
[389578175,1759723877708,-500.0,0.00016438,2]
[389578176,1759723877720,-500.0,0.00016438,2]
[389578177,1759723877731,-500.0,0.00016438,2]
[389578178,1759723877742,-625.82259075,0.00016438,2]
[389578179,1759723877753,-500.0,0.00016438,2]
[389578180,1759723877764,-500.0,0.00016438,2]
[389578181,1759723877774,-500.0,0.00016438,2]
[389578182,1759723877786,-500.0,0.00016438,2]
[389578183,1759723877798,-500.0,0.00016438,2]
[389578184,1759723877809,-637.81111002,0.00016438,2]
[389578185,1759723877819,-500.0,0.00016438,2]
[389578186,1759723877829,-500.0,0.00016438,2]
[389578187,1759723877839,-152.227371,0.00016438,2]
[389578188,1759723877850,-643.56013405,0.00016438,2]
[389578189,1759723877860,-500.0,0.00016438,2]
[389578190,1759723877872,-500.0,0.00016438,2]
[389578191,1759723877882,-621.9999729,0.00016438,2]
[389578192,1759723877892,-152.25112,0.00016438,2]
[389578193,1759723877902,-242.33101759,0.00016438,2]
[389578194,1759723877913,-158.968256,0.00016438,2]
[389578195,1759723877924,-158.968256,0.00016438,2]
[389578196,1759723877934,-158.968256,0.00016438,2]
[389578197,1759723877944,-500.0,0.00016438,2]
[389578198,1759723877954,-158.968256,0.00016438,2]
[389578199,1759723877964,-500.0,0.00016438,2]
[389578200,1759723877973,-158.968256,0.00016438,2]
[389578201,1759723877983,-500.0,0.00016438,2]
[389578202,1759723877994,-158.968256,0.00016438,2]
[389578203,1759723878004,-158.968256,0.00016438,2]
[389578204,1759723878015,-500.0,0.00016438,2]
[389578205,1759723878025,-158.968256,0.00016438,2]
[389578206,1759723878036,-328.54216522,0.00016438,2]
[389578207,1759723878046,-158.968256,0.00016438,2]
[389578208,1759723878056,-500.0,0.00016438,2]
[389578209,1759723878066,-158.968256,0.00016438,2]
[389578210,1759723878076,-500.0,0.00016438,2]
[389578211,1759723878086,-500.0,0.00016438,2]
[389578212,1759723878096,-158.968256,0.00016438,2]
[389578213,1759723878106,-158.968256,0.00016438,2]
[389578214,1759723878116,-170.196523,0.00016438,2]
[389578215,1759723878127,-500.0,0.00016438,2]
[389578216,1759723878138,-500.0,0.00016438,2]
[389578217,1759723878149,-500.0,0.00016438,2]
[389578218,1759723878159,-158.968256,0.00016438,2]
[389578219,1759723878170,-151.0,0.00016438,2]
[389578220,1759723878180,-500.0,0.00016438,2]
[389578221,1759723878190,-158.83233304,0.00016438,2]
[389578222,1759723878201,-158.968256,0.00016438,2]
[389578223,1759723878394,-151.0,0.00016438,2]
[389578224,1759723878423,-500.0,0.00016438,2]
[389578225,1759723878432,-158.968256,0.00016438,2]
[389578226,1759723878442,-151.0,0.00016438,2]
[389578227,1759723878451,-500.0,0.00016438,2]
[389578228,1759723878460,-500.0,0.00016438,2]
[389578229,1759723878470,-151.0,0.00016438,2]
[389578230,1759723878479,-158.968256,0.00016438,2]
[389578231,1759723878489,-500.0,0.00016438,2]
[389578232,1759723878498,-500.0,0.00016438,2]
[389578233,1759723878508,-151.0,0.00016438,2]
[389578234,1759723878518,-500.0,0.00016438,2]
[389578235,1759723878528,-151.0,0.00016438,2]
[389578236,1759723878537,-158.968256,0.00016438,2]
[389578237,1759723878546,-500.0,0.00016438,2]
[389578238,1759723878556,-151.0,0.00016438,2]
[389578239,1759723878566,-158.968256,0.00016438,2]
[389578240,1759723878577,-500.0,0.00016438,2]
[389578241,1759723878590,-151.0,0.00016438,2]
[389578242,1759723878600,-158.968256,0.00016438,2]
[389578243,1759723878610,-500.0,0.00016438,2]
[389578244,1759723878619,-500.0,0.00016438,2]
[389578245,1759723878630,-151.0,0.00016438,2]
[389578246,1759723878639,-500.0,0.00016438,2]
[389578247,1759723878650,-158.96825,0.00016438,2]
[389578248,1759723878660,-151.0,0.00016438,2]
[389578249,1759723878670,-420.41691062,0.00016438,2]
[389578250,1759723878679,-500.0,0.00016438,2]
[389578251,1759723878689,-500.0,0.00016438,2]
[389578252,1759723878699,-151.0,0.00016438,2]
[389578253,1759723878709,-151.0,0.00016438,2]
[389578254,1759723878718,-514.09406283,0.00016438,2]
[389578255,1759723878728,-500.0,0.00016438,2]
[389578256,1759723878738,-151.0,0.00016438,2]
[389578257,1759723878750,-151.0,0.00016438,2]
[389578258,1759723878771,-151.0,0.00016438,2]
[389578259,1759723878788,-500.0,0.00016438,2]
[389578260,1759723878798,-167.840497,0.00016438,2]
[389578261,1759723878808,-500.0,0.00016438,2]
[389578262,1759723878818,-151.0,0.00016438,2]
[389578263,1759723878828,-238.885355,0.00016438,2]
[389578264,1759723878838,-1832.35,0.00016438,2]
[389578265,1759723878847,-152.141734,0.00016438,2]
[389578266,1759723878856,-1832.35,0.00016438,2]
[389578267,1759723878866,-500.0,0.00016438,2]
[389578268,1759723878875,-151.0,0.00016438,2]
[389578269,1759723878885,-238.885355,0.00016438,2]
[389578270,1759723878895,-500.0,0.00016438,2]
[389578271,1759723878904,-151.0,0.00016438,2]
[389578272,1759723878914,-1832.35,0.00016438,2]
[389578273,1759723878923,-500.0,0.00016438,2]
[389578274,1759723878932,-238.885355,0.00016438,2]
[389578275,1759723878942,-1832.35,0.00016438,2]
[389578276,1759723878951,-151.0,0.00016438,2]
[389578277,1759723878960,-500.0,0.00016438,2]
[389578278,1759723878970,-1832.35,0.00016438,2]
[389578279,1759723878979,-238.885355,0.00016438,2]
[389578280,1759723878989,-151.0,0.00016438,2]
[389578281,1759723878998,-500.0,0.00016438,2]
[389578282,1759723879008,-1832.35,0.00016438,2]
[389578283,1759723879018,-500.81290807,0.00016438,2]
[389578284,1759723879028,-238.885355,0.00016438,2]
[389578285,1759723879038,-500.0,0.00016438,2]
[389578286,1759723879048,-151.0,0.00016438,2]
[389578287,1759723879058,-1832.35,0.00016438,2]
[389578288,1759723879068,-490.0,0.00016438,2]
[389578289,1759723879078,-222.39822927,0.00016438,2]
[389578290,1759723879088,-238.885355,0.00016438,2]
[389578291,1759723879098,-151.0,0.00016438,2]
[389578292,1759723879108,-490.3441367,0.00016438,2]
[389578293,1759723879974,-1342.0058633,0.00016438,2]
[389578294,1759723879985,-151.0,0.00016438,2]
[389578295,1759723879996,-1832.35,0.00016438,2]
[389578296,1759723880006,-238.885355,0.00016438,2]
[389578297,1759723880016,-151.0,0.00016438,2]
[389578298,1759723880025,-151.0,0.00016438,2]
[389578299,1759723880035,-1832.35,0.00016438,2]
[389578300,1759723880044,-238.885355,0.00016438,2]
[389578301,1759723880054,-151.0,0.00016438,2]
[389578302,1759723880064,-1832.35,0.00016438,2]
[389578303,1759723880074,-151.0,0.00016438,2]
[389578304,1759723880084,-43.6336682,0.00016438,2]
[389578305,1759723880106,-195.2516868,0.00016438,2]
[389578306,1759723880116,-148.17021345,0.00016438,2]
[389578307,1759723880134,-2.82978655,0.00016438,2]
[389578308,1759723880143,-1832.35,0.00016438,2]
[389578309,1759723880153,-151.0,0.00016438,2]
[389578310,1759723880165,-238.885355,0.00016438,2]
[389578311,1759723880175,-1045.415001,0.00016438,2]
[389578312,1759723880187,-490.0,0.00016438,2]
[389578313,1759723880370,-296.934999,0.00016438,2]
[389578314,1759723880379,-151.0,0.00016438,2]
[389578315,1759723880388,-151.0,0.00016438,2]
[389578316,1759723880398,-683.72802247,0.00016438,2]
[389578317,1759723880414,-952.42230218,0.00016438,2]
[389578318,1759723923971,265.63457947,0.0001235,2]
[389578319,1759723924025,619.81401878,0.0001289,2]
[389578320,1759723924057,796.90373843,0.00013106,2]
[389578321,1759723924430,531.26915895,0.00012782,2]
[389578322,1759723924926,442.72429912,0.00012674,2]
[389578323,1759723925174,708.3588786,0.00012998,2]
[389578347,1759724779531,-350.0,0.00013117,2]
[389578348,1759724779558,-500.50268642,0.00013193,2]
[389578349,1759724779581,-362.74797131,0.00013193,2]
[389578350,1759724779605,-326.0,0.00013195,10]
[389578351,1759724779628,-694.24980395,0.00013197,2]
[389578352,1759724779651,-520.17279032,0.00013197,2]
[389578353,1759724779675,-350.0,0.000139,3]
[389578354,1759724779697,-250.0,0.00014403,2]
[389578355,1759724779721,-166.57299081,0.00014428,2]
[389578356,1759724779744,-300.0,0.00014428,2]
[389578357,1759724779768,-195.0,0.00014428,2]
[389578358,1759724779792,-272.0,0.000145,2]
[389578359,1759724779817,-1200.0,0.00014546,2]
[389578360,1759724779840,-6083.23,0.00014548,2]
[389578361,1759724779862,-2853.44,0.00014575,2]
[389578362,1759724779888,-150.0,0.0001477,2]
[389578363,1759724779912,-150.0,0.0001477,2]
[389578364,1759724779937,-150.0,0.0001477,2]
[389578365,1759724779962,-150.0,0.0001477,2]
[389578366,1759724779986,-150.0,0.0001477,2]
[389578367,1759724780009,-154.31498818,0.0001477,2]
[389578368,1759724780037,-150.0,0.0001477,2]
[389578369,1759724780061,-150.0,0.0001477,2]
[389578370,1759724780085,-150.0,0.0001477,2]
[389578371,1759724780109,-157972.13786978,0.000148,2]
[389578372,1759724780133,-350.0,0.00014802,3]
[389578373,1759724780157,-150.0,0.00014808,2]
[389578374,1759724780181,-322.6107,0.00014809,2]
[389578375,1759724780204,-151.9217705,0.00014809,2]
[389578376,1759724780228,-632.43693926,0.00014809,2]
[389578377,1759724780453,-2000.0,0.00014809,2]
[389578378,1759724780497,-2000.0,0.00014809,2]
[389578379,1759724780522,-2000.0,0.00014809,2]
[389578380,1759724780546,-2000.0,0.00014809,2]
[389578381,1759724780571,-7965.41053268,0.00014809,2]
[389578382,1759724780596,-2000.0,0.00014809,2]
[389578383,1759724780620,-2000.0,0.00014809,2]
[389578384,1759724780645,-2000.0,0.00014809,2]
[389578385,1759724780669,-2000.0,0.00014809,2]
[389578386,1759724780693,-2000.0,0.00014809,2]
[389578387,1759724780717,-2000.0,0.00014809,2]
[389578388,1759724780742,-2066.38192771,0.00014809,2]
[389578389,1759724780766,-231.28369723,0.00014809,2]
[389578390,1759724780790,-160.17,0.00014809,2]
[389578391,1759724780813,-183.61616911,0.00014848,2]
[389578392,1759724780837,-5612.2259833,0.00014864,2]
[389578393,1759724780860,-199.7445231,0.00014948,2]
[389578394,1759724780883,-161.13189549,0.00014948,2]
[389578395,1759724780905,-186.16189791,0.00014948,2]
[389578396,1759724780928,-1333.36,0.00014966,2]
[389578397,1759724780952,-3631889.59466188,0.00015,2]
[389578402,1759724835613,21291.34789844,0.00013,6]
[389578403,1759724835648,1708.65210156,0.00013,6]
[389578661,1759724885885,298.0,0.00013116,2]
[389578672,1759724947917,283.0,0.00013116,2]
[389578673,1759725006919,269.0,0.00013116,2]
[389578687,1759725031394,-324.47406696,0.00013919,2]
[389578689,1759725031403,-269.0,0.00014012,3]
[389578691,1759725031413,-243.35555022,0.00014019,2]
[389578692,1759725031422,-202.79629185,0.00014119,2]
[389578693,1759725031431,-229.83579743,0.00014468,2]
[389578694,1759725031440,-243.35555023,0.00014538,2]
[389578695,1759725031450,-270.39505581,0.00014677,2]
[389578696,1759725031459,-4767.10029013,0.000147,2]
[389578697,1759725031468,-300.0,0.00014726,2]
[389578698,1759725031477,-283.9148086,0.00014747,2]
[389578699,1759725031486,-7965.41053268,0.00014809,2]
[389578700,1759725031495,-322.6107,0.00014809,2]
[389578701,1759725031505,-231.28369723,0.00014809,2]
[389578702,1759725031514,-297.43456139,0.00014817,2]
[389578703,1759725031523,-1940.18754382,0.00014864,2]
[389578704,1759725031532,-269.0,0.00014908,3]
[389578705,1759725031541,-1578.36617853,0.00014926,2]
[389578706,1759725031550,-161.13189548,0.00014926,2]
[389578707,1759725031559,-150.0,0.00014926,2]
[389578708,1759725031568,-324.47406697,0.00014956,2]
[389578709,1759725031577,-502.58859055,0.00014973,2]
[389578710,1759725031586,-500.0,0.00014973,2]
[389578711,1759725031595,-500.0,0.00014973,2]
[389578712,1759725031604,-500.0,0.00014973,2]
[389578713,1759725031614,-500.0,0.00014973,2]
[389578714,1759725031623,-500.0,0.00014973,2]
[389578715,1759725031632,-112.0271787,0.00014973,2]
[389578716,1759725031685,-283.91480859,0.00014189,2]
[389578717,1759725031695,-256.87530302,0.00014607,2]
[389578718,1759725031704,-96.48579399,0.00014973,2]
[389578719,1759725031714,-239.58424838,0.00014973,2]
[389578720,1759725031723,-328.28,0.0001499,2]
[389578721,1759725031732,-328.28,0.0001499,2]
[389578722,1759725031741,-328.28,0.0001499,2]
[389578723,1759725031750,-328.28,0.0001499,2]
[389578724,1759725031759,-328.28,0.0001499,2]
[389578725,1759725031768,-298.11,0.0001499,2]
[389578726,1759725031778,-298.11,0.0001499,2]
[389578727,1759725031786,-8735.77836432,0.00015,2]
[389578728,1759725031805,-216.31604464,0.00014398,2]
[389578729,1759725031814,-508.63217713,0.00015,2]
[389578730,1759725031825,-1576.39666032,0.00015,2]
[389578731,1759725031835,-1464.5,0.00015,2]
[389578732,1759725031846,-1592.24780196,0.00015,2]
[389578733,1759725031871,-25903.47221477,0.00015,2]
[389578734,1759725031882,-679.27449454,0.00015,2]
[389578735,1759725031903,-12805.20416979,0.00015,2]
[389578736,1759725031935,-511.71246314,0.00015,2]
[389578804,1759725038424,-488.2603341,0.00015,2]
[389578907,1759725039388,-619.28852325,0.00015,2]
[389578909,1759725039399,-3300.9297556,0.00015,2]
[389578915,1759725039445,-1529.0169867,0.00015,2]
[389578917,1759725039457,-318.8230133,0.00015,2]
[389579517,1759725045645,-519.5048302,0.00014699,2]
[389579519,1759725045655,-1040.94274635,0.00015,2]
[389581035,1759725473410,158.56,6.916e-05,2]
[389581036,1759725473607,158.56,9.221e-05,2]
[389581037,1759725473815,158.56,0.00011526,2]
[389581038,1759725579943,-320.0973393,0.000171,30]
[389581039,1759725579980,-310.50486696,0.00017955,30]
[389581040,1759725580024,-310.02524335,0.00018853,30]
[389581041,1759725580051,-309.37255039,0.00019,30]
[389581042,1759725839264,266.0,0.000125,2]
[389581046,1759726231573,-200.0,0.0001348,2]
[389581047,1759726231582,-322.04790989,0.0001352,2]
[389581055,1759726231984,-177.95209011,0.0001352,2]
[389581057,1759726231997,-154.09,0.00013554,2]
[389581059,1759726232006,-666.0,0.00013629,3]
[389581060,1759726232016,-261.0,0.0001368,2]
[389581061,1759726232026,-284.97862601,0.00013687,2]
[389581062,1759726232036,-3144.05345377,0.00013688,2]
[389581063,1759726232051,-207.82654623,0.00013688,2]
[389581064,1759726232061,-2217.64,0.00013708,2]
[389581065,1759726232071,-150.0,0.00013731,2]
[389581066,1759726232080,-682.45,0.00013735,2]
[389581067,1759726232089,-158.56,0.00013832,2]
[389581068,1759726232098,-250.0,0.00013872,2]
[389581069,1759726232107,-300.0,0.00013875,2]
[389581070,1759726232116,-313.21553032,0.00013926,2]
[389581071,1759726232125,-234.91164774,0.00014026,2]
[389581072,1759726232134,-166.66,0.00014105,2]
[389581073,1759726232143,-300.0,0.00014125,2]
[389581074,1759726232153,-391.51941292,0.00014126,2]
[389581075,1759726232163,-274.06358904,0.000142,2]
[389581076,1759726232174,-352.36747162,0.00014273,2]
[389581077,1759726232183,-208.81035356,0.00014347,2]
[389581078,1759726232194,-154.09,0.00014401,2]
[389581079,1759726232204,-221.86100065,0.0001442,2]
[389581080,1759726232215,-234.91164775,0.00014494,2]
[389581081,1759726232223,-247.96229485,0.00014567,2]
[389581082,1759726232232,-261.01294195,0.0001464,2]
[389581083,1759726232241,-828.47281612,0.00014649,2]
[389581084,1759726232251,-274.06358905,0.00014714,2]
[389581085,1759726232260,-150.0,0.0001477,2]
[389581086,1759726232269,-169.77595049,0.0001477,2]
[389581087,1759726232279,-287.11423614,0.00014787,2]
[389581088,1759726232288,-167.58885557,0.000148,2]
[389581089,1759726232297,-255.484,0.000148,2]
[389581090,1759726232306,-300.16488324,0.00014861,2]
[389581091,1759726232315,-256.0,0.0001487,2]
[389581092,1759726232324,-195.0,0.00014872,2]
[389581093,1759726232335,-151.08173687,0.00014872,2]
[389581094,1759726232345,-150.0,0.00014899,2]
[389581095,1759726232355,-15027.00229811,0.000149,2]
[389581096,1759726232445,-10841.80740342,0.000149,2]
[389581097,1759726232456,-4409.89398959,0.000149,2]
[389581098,1759726232470,-852.68973297,0.000149,2]
[389581099,1759726232482,-20610.388218,0.000149,2]
[389581100,1759726232495,-18844.81008458,0.000149,2]
[389581101,1759726232505,-5000.0,0.000149,2]
[389581102,1759726232514,-182.94141491,0.000149,2]
[389581103,1759726232523,-160.18,0.000149,2]
[389581104,1759726232535,-4851.8231332,0.000149,2]
[389581105,1759726232546,-37428.37304649,0.000149,2]
[389581116,1759726237521,-76916.20382031,0.000149,2]
[389581117,1759726237531,-278.1815,0.000149,2]
[389581118,1759726237540,-623.48620963,0.000149,2]
[389581313,1759726239810,-591.566251,0.000149,2]
[389581316,1759726239825,-242.31663937,0.000149,2]
[389581318,1759726239835,-2090.3879,0.000149,2]
[389581320,1759726239844,-870.44576613,0.000149,2]
[389581323,1759726239863,-2815.4103862,0.000149,2]
[389581325,1759726239875,-625.84759179,0.000149,2]
[389581327,1759726239884,-158.50130237,0.00014926,2]
[389581329,1759726239893,-313.21553034,0.00014934,2]
[389581331,1759726239903,-3335.6228767,0.00014947,2]
[389581333,1759726239912,-3815.87473464,0.00014947,2]
[389581336,1759726239930,-2500.0,0.00014947,2]
[389581339,1759726239941,-8409.01170605,0.00014947,2]
[389581341,1759726239951,-612.86603334,0.00014947,2]
[389581498,1759726242580,-225.54825257,0.000149,2]
[389581499,1759726242590,-487.04724721,0.00014947,2]
[389581500,1759726245559,-1152.88562897,0.00014947,2]
[389581501,1759726245721,-1005.9923867,0.00014947,2]
[389581502,1759726245732,-2255.80455897,0.00014947,2]
[389581520,1759726410080,709.84018602,0.00018,120]
[389581521,1759726427371,5142.6,0.000157,60]
[389581527,1759726551909,4432.7,0.000147,120]
[389581528,1759726632290,308.00026717,0.0001235,2]
[389581529,1759726632582,205.33351145,0.00012574,2]
[389581530,1759726632616,462.00040078,0.00013022,2]
[389581531,1759726633018,359.33364505,0.00012798,2]
[389581532,1759726633230,308.00026718,0.00012686,2]
[389581533,1759726769201,1923.0,0.000157,60]
[389581534,1759726811139,220.0,0.00013116,2]
[389581535,1759726813193,2000.0,0.000131,2]
[389581536,1759726828476,2000.0,0.000131,2]
[389581537,1759726872902,2000.0,0.000157,60]
[389581542,1759727348270,-513.3,0.00013134,2]
[389581543,1759727348295,-500.0,0.00013237,2]
[389581544,1759727348317,-500.0,0.00013237,2]
[389581545,1759727348340,-500.0,0.00013237,2]
[389581546,1759727348361,-500.0,0.00013237,2]
[389581547,1759727348383,-540.24807147,0.00013237,2]
[389581548,1759727348403,-300.0,0.00013239,2]
[389581549,1759727348423,-1200.0,0.00013239,2]
[389581550,1759727348443,-246.32376053,0.00013241,2]
[389581551,1759727413811,846.23001756,0.000151,20]
[389581591,1759727432212,-572.97623947,0.00013241,2]
[389581593,1759727432223,-500.0,0.0001352,2]
[389581595,1759727432232,-166.74358137,0.00013569,2]
[389581598,1759727432244,-2899.02641863,0.00013569,2]
[389581599,1759727432253,-837.11,0.00013639,2]
[389581600,1759727432262,-200.0,0.00013699,2]
[389581601,1759727432271,-1200.0,0.00013738,2]
[389581602,1759727432281,-103.90385651,0.00013739,2]
[389581603,1759727432292,-562.77614349,0.00013739,2]
[389581604,1759727432301,-300.0,0.00013747,2]
[389581605,1759727432311,-345.18,0.00013747,2]
[389581606,1759727432319,-1124.03874156,0.00013748,2]
[389581609,1759727432370,-392.48502976,0.00013748,2]
[389581610,1759727432382,-1522.98779542,0.00013748,2]
[389581616,1759727432440,-627.62514,0.00013748,2]
[389581617,1759727432452,-1542.41246623,0.00013748,2]
[389581618,1759727432462,-3041.29082703,0.00013748,2]
[389581619,1759727432471,-390.24,0.0001385,2]
[389581620,1759727432481,-150.0,0.00013956,7]
[389581621,1759727432490,-1561.36,0.00014435,2]
[389581622,1759727432500,-1982.61293542,0.00014447,2]
[389581623,1759727432517,-390.24,0.00014543,2]
[389581624,1759727432528,-888.46160846,0.00014574,2]
[389581625,1759727432538,-400.0,0.000147,5]
[389581626,1759727432547,-150.0,0.00014769,2]
[389581627,1759727432556,-150.0,0.0001477,2]
[389581628,1759727432566,-150.0,0.0001477,2]
[389581629,1759727432575,-150.0,0.0001477,2]
[389581630,1759727432584,-150.0,0.0001477,2]
[389581631,1759727432593,-150.0,0.0001477,2]
[389581632,1759727432602,-151.53497393,0.0001477,2]
[389581633,1759727432612,-152.67080568,0.0001477,2]
[389581634,1759727432621,-150.0,0.0001477,2]
[389581635,1759727432630,-150.0,0.0001477,2]
[389581636,1759727432639,-150.0,0.0001477,2]
[389581637,1759727432648,-181.49,0.0001477,2]
[389581638,1759727432657,-445.32,0.0001477,2]
[389581639,1759727432666,-1671.87751892,0.000148,2]
[389581640,1759727432676,-11078.77260196,0.000148,2]
[389581641,1759727432685,-800.0,0.000148,5]
[389581642,1759727432695,-180.7348186,0.00014808,2]
[389581643,1759727432704,-969.7303,0.000149,2]
[389581644,1759727432713,-1861.9012,0.000149,2]
[389581645,1759727432722,-162.17563235,0.000149,2]
[389581646,1759727432731,-1007.0,0.000149,2]
[389581647,1759727432741,-1000.0,0.000149,2]
[389581648,1759727432750,-1000.0,0.000149,2]
[389581649,1759727432759,-1000.0,0.000149,2]
[389581650,1759727432769,-1000.0,0.000149,2]
[389581651,1759727432778,-1000.0,0.000149,2]
[389581652,1759727432787,-1000.0,0.000149,3]
[389581653,1759727432797,-1000.0,0.000149,3]
[389581654,1759727432806,-1000.0,0.000149,2]
[389581655,1759727432815,-1000.0,0.000149,3]
[389581656,1759727432825,-1000.0,0.000149,3]
[389581657,1759727432834,-1000.0,0.000149,3]
[389581658,1759727432843,-1000.0,0.000149,3]
[389581659,1759727432853,-182.9414149,0.000149,2]
[389581660,1759727432863,-1000.0,0.000149,2]
[389581661,1759727432872,-1000.0,0.000149,2]
[389581662,1759727432881,-317.0,0.000149,3]
[389581663,1759727432891,-1000.0,0.000149,2]
[389581664,1759727432900,-1000.0,0.000149,2]
[389581665,1759727432909,-443.0,0.000149,3]
[389581666,1759727432919,-1000.0,0.000149,2]
[389581667,1759727432928,-19474.96944947,0.000149,10]
[389581668,1759727432937,-1200.0,0.000149,5]
[389581669,1759727432947,-218.7059016,0.000149,2]
[389581670,1759727432957,-5000.0,0.000149,2]
[389581671,1759727432966,-3880.53336969,0.000149,2]
[389581672,1759727432976,-3488.6347857,0.00014901,2]
[389581673,1759727432985,-166.0708842,0.00014901,2]
[389581674,1759727432995,-8931.6330761,0.00014901,2]
[389581675,1759727433005,-5622.4518541,0.00014901,2]
[389581676,1759727433014,-500.0,0.00014932,2]
[389581677,1759727433024,-3905.84566,0.00014947,2]
[389581678,1759727433033,-500.0,0.00014973,2]
[389581679,1759727433042,-198.231667,0.00014973,2]
[389581680,1759727433051,-501.51725008,0.00014973,2]
[389581681,1759727433061,-500.0,0.00014973,2]
[389581682,1759727433071,-500.0,0.00014973,2]
[389581683,1759727433080,-500.0,0.00014973,2]
[389581684,1759727433090,-500.0,0.00014973,2]
[389581685,1759727433099,-500.0,0.00014973,2]
[389581686,1759727433108,-500.42990743,0.00014973,2]
[389581687,1759727433121,-501.3878239,0.00014973,2]
[389581688,1759727433131,-500.0,0.00014973,2]
[389581689,1759727433140,-500.69179469,0.00014973,2]
[389581690,1759727433150,-500.0,0.00014973,2]
[389581691,1759727433159,-500.0,0.00014973,2]
[389581692,1759727433170,-500.0,0.00014973,2]
[389581693,1759727433180,-500.0,0.00014973,2]
[389581694,1759727433189,-500.0,0.00014973,2]
[389581695,1759727433201,-500.0,0.00014973,2]
[389581696,1759727433210,-500.0,0.00014973,2]
[389581697,1759727433219,-986.6555,0.00014999,2]
[389581698,1759727433228,-116233.80084408,0.00015,2]
[389581699,1759727433238,-3198.53416976,0.00015,2]
[389581700,1759727433251,-10271.44953946,0.00015,2]
[389581701,1759727433262,-55301.58919206,0.00015,2]
[389581702,1759727433274,-53429.46659495,0.00015,2]
[389581703,1759727433298,-420.58716886,0.00015,2]
[389581704,1759727433310,-13762.6889643,0.00015,2]
[389581705,1759727433321,-358.4518128,0.00015,2]
[389581706,1759727437295,269.0,0.000123,2]
[389581712,1759727437686,-264.0,0.0001348,2]
[389581713,1759727437695,-326.58512303,0.00013747,2]
[389581714,1759727437741,-17.58848521,0.00013747,2]
[389581715,1759727437750,-196.89732004,0.00013747,2]
[389581716,1759727437759,-187.30988495,0.00013747,2]
[389581717,1759727437769,-1825.75205763,0.00015,2]
[389581718,1759727437833,-498.98998669,0.00015,2]
[389581719,1759727437844,-822.58716,0.00015,2]
[389581720,1759727437959,-705.50396723,0.00015,2]
[389581721,1759727437970,-874.02312552,0.00015,2]
[389581732,1759727439794,-259.0,0.0001467,2]
[389581733,1759727439803,-150.0,0.00014999,2]
[389581734,1759727439812,-402.17698504,0.00015,2]
[389581735,1759727439906,-2057705.18676721,0.00015,2]
[389581736,1759727439915,-500.0,0.00015,2]
[389581737,1759727439925,-10909.3907781,0.00015013,2]
[389581738,1759727439934,-1600.0,0.00015019,2]
[389581739,1759727439945,-181.49,0.00015044,2]
[389581740,1759727439954,-445.32,0.00015044,2]
[389581741,1759727439964,-1177.66,0.00015049,2]
[389581742,1759727439974,-218.70590156,0.0001506,2]
[389581743,1759727439983,-3880.53336967,0.0001506,2]
[389581744,1759727439992,-420.0,0.00015064,2]
[389581745,1759727440002,-300.0,0.00015068,2]